[Event "Titled Tuesday Blitz May 24 Late 2022"]
[White "Shimanov, Aleksandr"]
[Black "Hansen, Eric"]
[WhiteFideId "4198603"]
[BlackFideId "2606771"]
[WhiteElo "2605"]
[BlackElo "2568"]
[Result "1-0"]
[Round "08"]
[TimeControl "180+1"]
[Date "2022.05.24"]
[WhiteClock "0:00:04"]
[BlackClock "0:00:01"]

1. b3 {[%clk 0:03:00]}  e5 {[%clk 0:02:58]} 2. Bb2 {[%clk 0:03:00]}  Nc6 {[%clk 0:02:58]} 3. e3 {[%clk 0:03:00]}  Nf6 {[%clk 0:02:58]} 4. Bb5 {[%clk 0:02:59]}  e4 {[%clk 0:02:58]} 5. d4 {[%clk 0:02:55]}  Ne7 {[%clk 0:02:50]} 6. Be2 {[%clk 0:02:46]}  d5 {[%clk 0:02:49]} 7. c4 {[%clk 0:02:46]}  c6 {[%clk 0:02:50]} 8. Nc3 {[%clk 0:02:45]}  Nf5 {[%clk 0:02:49]} 9. h4 {[%clk 0:02:40]}  h5 {[%clk 0:02:45]} 10. g3 {[%clk 0:02:31]}  Bd6 {[%clk 0:02:44]} 11. Nh3 {[%clk 0:02:30]}  a6 {[%clk 0:02:35]} 12. c5 {[%clk 0:02:11]}  Bc7 {[%clk 0:02:34]} 13. b4 {[%clk 0:02:12]}  Ng4 {[%clk 0:02:24]} 14. Kd2 {[%clk 0:02:04]}  Qf6 {[%clk 0:01:34]} 15. Qg1 {[%clk 0:01:28]}  Nxf2 {[%clk 0:01:11]} 16. Qxf2 {[%clk 0:01:18]}  Bxg3 {[%clk 0:01:07]} 17. Qg1 {[%clk 0:01:18]}  Bxh4 {[%clk 0:00:58]} 18. Rf1 {[%clk 0:01:17]}  Qh6 {[%clk 0:00:57]} 19. Bc1 {[%clk 0:01:13]}  Nxd4 {[%clk 0:00:50]} 20. Nf4 {[%clk 0:01:13]}  Nxe2 {[%clk 0:00:50]} 21. Ncxe2 {[%clk 0:01:14]}  g5 {[%clk 0:00:39]} 22. Rxh4 {[%clk 0:00:45]}  gxh4 {[%clk 0:00:37]} 23. Bb2 {[%clk 0:00:45]}  Bg4 {[%clk 0:00:37]} 24. Bxh8 {[%clk 0:00:44]}  Qxh8 {[%clk 0:00:37]} 25. Nd4 {[%clk 0:00:45]}  Qe5 {[%clk 0:00:30]} 26. Qh2 {[%clk 0:00:41]}  a5 {[%clk 0:00:22]} 27. b5 {[%clk 0:00:39]}  cxb5 {[%clk 0:00:15]} 28. Qxh4 {[%clk 0:00:37]}  Rc8 {[%clk 0:00:12]} 29. Rc1 {[%clk 0:00:21]}  b4 {[%clk 0:00:10]} 30. Rc2 {[%clk 0:00:06]}  Kf8 {[%clk 0:00:03]} 31. Qf2 {[%clk 0:00:05]}  Kg7 {[%clk 0:00:02]} 32. Rc1 {[%clk 0:00:06]}  Rc7 {[%clk 0:00:01]} 33. Qg3 {[%clk 0:00:06]}  Kh7 {[%clk 0:00:01]} 34. Nxh5 {[%clk 0:00:05]}  Qxh5 {[%clk 0:00:01]} 35. Qxc7 {[%clk 0:00:04]} 1-0


[Site "https://www.chess.com"]

[Event "Titled Tuesday Blitz May 24 Late 2022"]
[White "Shirov, Alexei"]
[Black "Koutlas, Nikolaos"]
[WhiteFideId "2209390"]
[BlackFideId "25827138"]
[WhiteElo "2678"]
[BlackElo "1645"]
[Result "1-0"]
[Round "08"]
[TimeControl "180+1"]
[Date "2022.05.24"]
[WhiteClock "0:00:53"]
[BlackClock "0:00:03"]

1. e4 {[%clk 0:03:00]}  c5 {[%clk 0:02:59]} 2. Nc3 {[%clk 0:03:00]}  Nc6 {[%clk 0:02:59]} 3. Nge2 {[%clk 0:02:59]}  g6 {[%clk 0:02:56]} 4. d4 {[%clk 0:02:59]}  cxd4 {[%clk 0:02:56]} 5. Nxd4 {[%clk 0:02:59]}  Bg7 {[%clk 0:02:56]} 6. Be3 {[%clk 0:02:59]}  Nf6 {[%clk 0:02:56]} 7. Bc4 {[%clk 0:02:59]}  O-O {[%clk 0:02:55]} 8. Bb3 {[%clk 0:02:58]}  d6 {[%clk 0:02:45]} 9. f3 {[%clk 0:02:56]}  e6 {[%clk 0:02:22]} 10. Qd2 {[%clk 0:02:55]}  a6 {[%clk 0:02:19]} 11. O-O-O {[%clk 0:02:53]}  d5 {[%clk 0:02:12]} 12. exd5 {[%clk 0:02:41]}  exd5 {[%clk 0:02:03]} 13. h4 {[%clk 0:02:38]}  Na5 {[%clk 0:01:43]} 14. g4 {[%clk 0:02:33]}  Nxb3+ {[%clk 0:01:41]} 15. axb3 {[%clk 0:02:31]}  h5 {[%clk 0:01:30]} 16. gxh5 {[%clk 0:02:16]}  Nxh5 {[%clk 0:01:28]} 17. Bh6 {[%clk 0:02:15]}  Be6 {[%clk 0:01:12]} 18. Bxg7 {[%clk 0:02:07]}  Kxg7 {[%clk 0:01:09]} 19. Rdg1 {[%clk 0:02:00]}  Qf6 {[%clk 0:01:06]} 20. Rg5 {[%clk 0:01:57]}  Qf4 {[%clk 0:00:44]} 21. Rhg1 {[%clk 0:01:54]}  Qxd2+ {[%clk 0:00:43]} 22. Kxd2 {[%clk 0:01:52]}  Nf4 {[%clk 0:00:37]} 23. h5 {[%clk 0:01:51]}  Kf6 {[%clk 0:00:22]} 24. Nxe6 {[%clk 0:01:32]}  fxe6 {[%clk 0:00:20]} 25. R5g4 {[%clk 0:01:25]}  Nxh5 {[%clk 0:00:10]} 26. Rxg6+ {[%clk 0:01:24]}  Ke7 {[%clk 0:00:09]} 27. Rh6 {[%clk 0:01:20]}  Nf6 {[%clk 0:00:08]} 28. Rgg6 {[%clk 0:01:19]}  Rf7 {[%clk 0:00:07]} 29. Ne2 {[%clk 0:01:16]}  Rg8 {[%clk 0:00:07]} 30. Rxg8 {[%clk 0:01:02]}  Nxg8 {[%clk 0:00:07]} 31. Rh8 {[%clk 0:01:02]}  Nf6 {[%clk 0:00:06]} 32. Rb8 {[%clk 0:01:01]}  Kd6 {[%clk 0:00:07]} 33. b4 {[%clk 0:01:00]}  Nh7 {[%clk 0:00:05]} 34. f4 {[%clk 0:00:59]}  Nf6 {[%clk 0:00:05]} 35. Ke3 {[%clk 0:00:58]}  Ng4+ {[%clk 0:00:04]} 36. Kd4 {[%clk 0:00:56]}  e5+ {[%clk 0:00:03]} 37. fxe5+ {[%clk 0:00:55]}  Nxe5 {[%clk 0:00:03]} 38. Rd8+ {[%clk 0:00:54]}  Ke6 {[%clk 0:00:03]} 39. Re8+ {[%clk 0:00:53]} 1-0


[Site "https://www.chess.com"]

[Event "Titled Tuesday Blitz May 24 Late 2022"]
[White "Sirosh, Ilja"]
[Black "Riehle, Marco"]
[WhiteFideId "4500458"]
[BlackFideId "12904392"]
[WhiteElo "2241"]
[BlackElo "2462"]
[Result "0-1"]
[Round "08"]
[TimeControl "180+1"]
[Date "2022.05.24"]
[WhiteClock "0:01:20"]
[BlackClock "0:01:32"]

1. e4 {[%clk 0:03:00]}  e5 {[%clk 0:02:59]} 2. Nf3 {[%clk 0:03:01]}  Nf6 {[%clk 0:02:57]} 3. Nc3 {[%clk 0:03:00]}  Nc6 {[%clk 0:02:57]} 4. h3 {[%clk 0:03:01]}  Bc5 {[%clk 0:02:56]} 5. Nxe5 {[%clk 0:03:00]}  O-O {[%clk 0:02:56]} 6. Nxc6 {[%clk 0:02:58]}  dxc6 {[%clk 0:02:57]} 7. d3 {[%clk 0:02:53]}  b5 {[%clk 0:02:53]} 8. a3 {[%clk 0:02:42]}  a6 {[%clk 0:02:49]} 9. Be2 {[%clk 0:02:38]}  Bd4 {[%clk 0:02:49]} 10. O-O {[%clk 0:02:36]}  c5 {[%clk 0:02:50]} 11. Be3 {[%clk 0:02:33]}  Bb7 {[%clk 0:02:48]} 12. Bxd4 {[%clk 0:02:30]}  cxd4 {[%clk 0:02:47]} 13. Nb1 {[%clk 0:02:30]}  c5 {[%clk 0:02:46]} 14. Nd2 {[%clk 0:02:29]}  Nd7 {[%clk 0:02:46]} 15. b3 {[%clk 0:02:27]}  f5 {[%clk 0:02:44]} 16. exf5 {[%clk 0:02:26]}  Rxf5 {[%clk 0:02:44]} 17. Bg4 {[%clk 0:02:25]}  Rf6 {[%clk 0:02:42]} 18. Re1 {[%clk 0:02:23]}  Nf8 {[%clk 0:02:38]} 19. Ne4 {[%clk 0:02:20]}  Bxe4 {[%clk 0:02:35]} 20. Rxe4 {[%clk 0:02:19]}  h6 {[%clk 0:02:35]} 21. Qe2 {[%clk 0:02:16]}  Ng6 {[%clk 0:02:29]} 22. g3 {[%clk 0:02:15]}  Qf8 {[%clk 0:02:25]} 23. Re1 {[%clk 0:02:14]}  Kh7 {[%clk 0:02:22]} 24. h4 {[%clk 0:02:12]}  c4 {[%clk 0:02:15]} 25. h5 {[%clk 0:02:10]}  Nh8 {[%clk 0:02:15]} 26. Re7 {[%clk 0:02:06]}  Nf7 {[%clk 0:02:04]} 27. Qe4+ {[%clk 0:02:02]}  Kh8 {[%clk 0:02:04]} 28. f4 {[%clk 0:02:00]}  cxd3 {[%clk 0:01:59]} 29. cxd3 {[%clk 0:02:00]}  Nd6 {[%clk 0:01:53]} 30. Qd5 {[%clk 0:01:54]}  Nf5 {[%clk 0:01:44]} 31. Qxa8 {[%clk 0:01:47]}  Qxa8 {[%clk 0:01:44]} 32. Re8+ {[%clk 0:01:47]}  Qxe8 {[%clk 0:01:45]} 33. Rxe8+ {[%clk 0:01:47]}  Kh7 {[%clk 0:01:46]} 34. Kf2 {[%clk 0:01:37]}  g5 {[%clk 0:01:41]} 35. Bxf5+ {[%clk 0:01:32]}  Rxf5 {[%clk 0:01:39]} 36. Re7+ {[%clk 0:01:32]}  Kg8 {[%clk 0:01:40]} 37. Re5 {[%clk 0:01:20]}  Rxe5 {[%clk 0:01:31]} 38. fxe5 {[%clk 0:01:20]}  g4 {[%clk 0:01:32]} 0-1


[Site "https://www.chess.com"]

[Event "Titled Tuesday Blitz May 24 Late 2022"]
[White "Sjugirov, Sanan"]
[Black "Vasquez Schroeder, Rodrigo"]
[WhiteFideId "4189302"]
[BlackFideId "3400042"]
[WhiteElo "2602"]
[BlackElo "2567"]
[Result "0-1"]
[Round "08"]
[TimeControl "180+1"]
[Date "2022.05.24"]
[WhiteClock "0:00:06"]
[BlackClock "0:00:28"]

1. e4 {[%clk 0:03:00]}  c5 {[%clk 0:02:59]} 2. Nc3 {[%clk 0:03:00]}  a6 {[%clk 0:02:58]} 3. Nge2 {[%clk 0:02:55]}  d6 {[%clk 0:02:53]} 4. g3 {[%clk 0:02:54]}  Nc6 {[%clk 0:02:52]} 5. Bg2 {[%clk 0:02:53]}  g6 {[%clk 0:02:51]} 6. d4 {[%clk 0:02:49]}  cxd4 {[%clk 0:02:51]} 7. Nxd4 {[%clk 0:02:50]}  Bd7 {[%clk 0:02:50]} 8. O-O {[%clk 0:02:45]}  Bg7 {[%clk 0:02:50]} 9. Nde2 {[%clk 0:02:40]}  Nf6 {[%clk 0:02:50]} 10. h3 {[%clk 0:02:38]}  O-O {[%clk 0:02:48]} 11. Be3 {[%clk 0:02:33]}  b5 {[%clk 0:02:47]} 12. Nd5 {[%clk 0:02:25]}  Rb8 {[%clk 0:02:43]} 13. c3 {[%clk 0:02:24]}  Ne5 {[%clk 0:02:41]} 14. Nxf6+ {[%clk 0:02:17]}  Bxf6 {[%clk 0:02:40]} 15. Bd4 {[%clk 0:02:11]}  Be6 {[%clk 0:02:37]} 16. b3 {[%clk 0:02:03]}  Bg7 {[%clk 0:02:29]} 17. f4 {[%clk 0:02:00]}  Nc6 {[%clk 0:02:26]} 18. Bxg7 {[%clk 0:01:57]}  Kxg7 {[%clk 0:02:26]} 19. Kh2 {[%clk 0:01:56]}  Rc8 {[%clk 0:02:14]} 20. Qd2 {[%clk 0:01:55]}  f6 {[%clk 0:02:07]} 21. Nd4 {[%clk 0:01:54]}  Nxd4 {[%clk 0:02:03]} 22. cxd4 {[%clk 0:01:55]}  Qb6 {[%clk 0:02:03]} 23. Rae1 {[%clk 0:01:50]}  Qc7 {[%clk 0:01:56]} 24. d5 {[%clk 0:01:45]}  Bd7 {[%clk 0:01:50]} 25. Rc1 {[%clk 0:01:29]}  Qb6 {[%clk 0:01:49]} 26. Rce1 {[%clk 0:01:24]}  Qc7 {[%clk 0:01:47]} 27. e5 {[%clk 0:01:21]}  dxe5 {[%clk 0:01:42]} 28. fxe5 {[%clk 0:01:22]}  fxe5 {[%clk 0:01:39]} 29. Qg5 {[%clk 0:01:07]}  Rxf1 {[%clk 0:01:38]} 30. Bxf1 {[%clk 0:00:58]}  Qd6 {[%clk 0:01:35]} 31. Rxe5 {[%clk 0:00:54]}  Rc2+ {[%clk 0:01:29]} 32. Bg2 {[%clk 0:00:53]}  Kf7 {[%clk 0:01:24]} 33. Qf4+ {[%clk 0:00:52]}  Qf6 {[%clk 0:01:21]} 34. Qe3 {[%clk 0:00:44]}  h5 {[%clk 0:01:05]} 35. Re4 {[%clk 0:00:41]}  Bf5 {[%clk 0:00:59]} 36. Rf4 {[%clk 0:00:38]}  Qb2 {[%clk 0:00:55]} 37. Qf3 {[%clk 0:00:36]}  Qe5 {[%clk 0:00:48]} 38. a4 {[%clk 0:00:20]}  Kg7 {[%clk 0:00:43]} 39. axb5 {[%clk 0:00:19]}  axb5 {[%clk 0:00:44]} 40. h4 {[%clk 0:00:14]}  Rd2 {[%clk 0:00:36]} 41. Qf1 {[%clk 0:00:10]}  Qxd5 {[%clk 0:00:33]} 42. Rf2 {[%clk 0:00:06]}  Rxf2 {[%clk 0:00:30]} 43. Qa1+ {[%clk 0:00:06]}  Kf7 {[%clk 0:00:28]} 0-1


[Site "https://www.chess.com"]

[Event "Titled Tuesday Blitz May 24 Late 2022"]
[White "Skliarov, Viktor"]
[Black "Nozdrachev, Leonid"]
[WhiteFideId "14106736"]
[BlackFideId "24113433"]
[WhiteElo "2229"]
[BlackElo "2255"]
[Result "0-1"]
[Round "08"]
[TimeControl "180+1"]
[Date "2022.05.24"]
[WhiteClock "0:00:08"]
[BlackClock "0:01:02"]

1. e4 {[%clk 0:03:00]}  d5 {[%clk 0:02:57]} 2. exd5 {[%clk 0:03:00]}  Qxd5 {[%clk 0:02:58]} 3. Nc3 {[%clk 0:03:01]}  Qe5+ {[%clk 0:02:57]} 4. Nge2 {[%clk 0:02:57]}  Nf6 {[%clk 0:02:54]} 5. d4 {[%clk 0:02:57]}  Qa5 {[%clk 0:02:53]} 6. g3 {[%clk 0:02:52]}  Bg4 {[%clk 0:02:50]} 7. Bg2 {[%clk 0:02:51]}  c6 {[%clk 0:02:50]} 8. O-O {[%clk 0:02:49]}  Qh5 {[%clk 0:02:47]} 9. f3 {[%clk 0:02:43]}  Bc8 {[%clk 0:02:45]} 10. Nf4 {[%clk 0:02:11]}  Qa5 {[%clk 0:02:44]} 11. d5 {[%clk 0:02:01]}  cxd5 {[%clk 0:02:33]} 12. Nfxd5 {[%clk 0:01:55]}  Be6 {[%clk 0:02:11]} 13. b4 {[%clk 0:01:33]}  Qd8 {[%clk 0:02:07]} 14. Nxf6+ {[%clk 0:01:33]}  exf6 {[%clk 0:02:08]} 15. Qxd8+ {[%clk 0:01:33]}  Kxd8 {[%clk 0:02:09]} 16. Rd1+ {[%clk 0:01:33]}  Nd7 {[%clk 0:02:08]} 17. a3 {[%clk 0:01:21]}  Rc8 {[%clk 0:02:07]} 18. Bb2 {[%clk 0:01:03]}  Kc7 {[%clk 0:02:07]} 19. Nb5+ {[%clk 0:00:53]}  Kb8 {[%clk 0:02:07]} 20. Nd4 {[%clk 0:00:54]}  Nb6 {[%clk 0:02:01]} 21. Nxe6 {[%clk 0:00:22]}  fxe6 {[%clk 0:02:02]} 22. c3 {[%clk 0:00:19]}  Na4 {[%clk 0:01:46]} 23. Rab1 {[%clk 0:00:14]}  Be7 {[%clk 0:01:37]} 24. Rd7 {[%clk 0:00:14]}  Rc7 {[%clk 0:01:33]} 25. Rxc7 {[%clk 0:00:13]}  Kxc7 {[%clk 0:01:25]} 26. c4 {[%clk 0:00:13]}  Rd8 {[%clk 0:01:18]} 27. Bc1 {[%clk 0:00:10]}  Rd1+ {[%clk 0:01:06]} 28. Kf2 {[%clk 0:00:10]}  Bd6 {[%clk 0:01:02]} 29. Ke2 {[%clk 0:00:08]}  Nc3+ {[%clk 0:01:01]} 30. Kf2 {[%clk 0:00:07]}  Nxb1 {[%clk 0:01:02]} 31. Be3 {[%clk 0:00:08]} 0-1


[Site "https://www.chess.com"]

[Event "Titled Tuesday Blitz May 24 Late 2022"]
[White "Steinberg, Nitzan"]
[Black "Bluebaum, Matthias"]
[WhiteFideId "2801795"]
[BlackFideId "24651516"]
[WhiteElo "2471"]
[BlackElo "2556"]
[Result "0-1"]
[Round "08"]
[TimeControl "180+1"]
[Date "2022.05.24"]
[WhiteClock "0:01:14"]
[BlackClock "0:00:36"]

1. e4 {[%clk 0:03:00]}  c6 {[%clk 0:03:00]} 2. Nf3 {[%clk 0:03:00]}  d5 {[%clk 0:03:01]} 3. Nc3 {[%clk 0:03:01]}  dxe4 {[%clk 0:03:01]} 4. Nxe4 {[%clk 0:03:02]}  Nf6 {[%clk 0:03:01]} 5. Qe2 {[%clk 0:03:02]}  Nxe4 {[%clk 0:03:02]} 6. Qxe4 {[%clk 0:03:03]}  Qa5 {[%clk 0:03:03]} 7. Qf4 {[%clk 0:03:03]}  Qf5 {[%clk 0:03:00]} 8. Qe3 {[%clk 0:03:03]}  Qe6 {[%clk 0:02:59]} 9. b3 {[%clk 0:03:04]}  Qxe3+ {[%clk 0:02:59]} 10. fxe3 {[%clk 0:03:04]}  Bf5 {[%clk 0:02:59]} 11. Bb2 {[%clk 0:03:02]}  Nd7 {[%clk 0:02:56]} 12. O-O-O {[%clk 0:02:43]}  a5 {[%clk 0:02:54]} 13. a4 {[%clk 0:02:40]}  f6 {[%clk 0:02:49]} 14. h3 {[%clk 0:02:38]}  e5 {[%clk 0:02:49]} 15. d4 {[%clk 0:02:37]}  exd4 {[%clk 0:02:33]} 16. Nxd4 {[%clk 0:02:31]}  Be4 {[%clk 0:02:30]} 17. Ne6 {[%clk 0:02:25]}  Rc8 {[%clk 0:02:30]} 18. Bc3 {[%clk 0:02:09]}  b6 {[%clk 0:01:17]} 19. Ba6 {[%clk 0:02:09]}  Rb8 {[%clk 0:01:16]} 20. Bc4 {[%clk 0:02:09]}  Nc5 {[%clk 0:01:00]} 21. Rd4 {[%clk 0:01:42]}  Bf5 {[%clk 0:00:54]} 22. Nc7+ {[%clk 0:01:30]}  Ke7 {[%clk 0:00:54]} 23. g4 {[%clk 0:01:25]}  Bc8 {[%clk 0:00:51]} 24. Rhd1 {[%clk 0:01:20]}  Rb7 {[%clk 0:00:47]} 25. Na6 {[%clk 0:01:20]}  Ne6 {[%clk 0:00:46]} 26. Re4 {[%clk 0:01:18]}  Kf7 {[%clk 0:00:36]} 27. Rd8 {[%clk 0:01:14]}  Ba3+ {[%clk 0:00:36]} 0-1


[Site "https://www.chess.com"]

[Event "Titled Tuesday Blitz May 24 Late 2022"]
[White "Stevens, Christian"]
[Black "Silva, Pedro Gil Ferreira Da"]
[WhiteFideId "2604450"]
[BlackFideId "1946102"]
[WhiteElo "2544"]
[BlackElo "1863"]
[Result "1-0"]
[Round "08"]
[TimeControl "180+1"]
[Date "2022.05.25"]
[WhiteClock "0:01:04"]
[BlackClock "0:01:09"]

1. d4 {[%clk 0:03:00]}  Nf6 {[%clk 0:02:59]} 2. c4 {[%clk 0:03:00]}  e6 {[%clk 0:03:00]} 3. Nc3 {[%clk 0:03:00]}  Bb4 {[%clk 0:03:00]} 4. e3 {[%clk 0:02:59]}  b6 {[%clk 0:03:00]} 5. Nf3 {[%clk 0:02:59]}  Bb7 {[%clk 0:03:00]} 6. Bd3 {[%clk 0:02:59]}  O-O {[%clk 0:02:59]} 7. O-O {[%clk 0:03:00]}  d6 {[%clk 0:03:00]} 8. Qe2 {[%clk 0:02:59]}  Bxc3 {[%clk 0:02:59]} 9. bxc3 {[%clk 0:02:58]}  Nbd7 {[%clk 0:03:00]} 10. e4 {[%clk 0:02:58]}  e5 {[%clk 0:03:01]} 11. Nh4 {[%clk 0:02:55]}  Re8 {[%clk 0:02:47]} 12. d5 {[%clk 0:02:43]}  Nc5 {[%clk 0:02:44]} 13. Nf5 {[%clk 0:02:41]}  Bc8 {[%clk 0:02:35]} 14. Bc2 {[%clk 0:02:36]}  Bxf5 {[%clk 0:02:34]} 15. exf5 {[%clk 0:02:36]}  a5 {[%clk 0:02:34]} 16. g4 {[%clk 0:02:32]}  e4 {[%clk 0:02:30]} 17. g5 {[%clk 0:02:23]}  Nfd7 {[%clk 0:02:29]} 18. f6 {[%clk 0:02:14]}  gxf6 {[%clk 0:02:25]} 19. Kh1 {[%clk 0:02:13]}  f5 {[%clk 0:02:24]} 20. Qh5 {[%clk 0:01:53]}  Ne5 {[%clk 0:02:21]} 21. Be3 {[%clk 0:01:39]}  Qe7 {[%clk 0:02:09]} 22. f3 {[%clk 0:01:28]}  exf3 {[%clk 0:01:40]} 23. Bxf5 {[%clk 0:01:25]}  Ng6 {[%clk 0:01:34]} 24. Rxf3 {[%clk 0:01:24]}  Ne4 {[%clk 0:01:25]} 25. Rh3 {[%clk 0:01:09]}  f6 {[%clk 0:01:10]} 26. Bxg6 {[%clk 0:01:04]}  hxg6 {[%clk 0:01:09]} 27. Qh8+ {[%clk 0:01:04]} 1-0


[Site "https://www.chess.com"]

[Event "Titled Tuesday Blitz May 24 Late 2022"]
[White "Tanenbaum, Zachary"]
[Black "Skytte, Rasmus"]
[WhiteFideId "2060850"]
[BlackFideId "1404210"]
[WhiteElo "2673"]
[BlackElo "1896"]
[Result "1-0"]
[Round "08"]
[TimeControl "180+1"]
[Date "2022.05.25"]
[WhiteClock "0:00:05"]
[BlackClock "0:00:01"]

1. e4 {[%clk 0:03:00]}  c5 {[%clk 0:02:55]} 2. Nf3 {[%clk 0:03:00]}  Nc6 {[%clk 0:02:53]} 3. Nc3 {[%clk 0:03:01]}  e6 {[%clk 0:02:53]} 4. d4 {[%clk 0:03:01]}  cxd4 {[%clk 0:02:52]} 5. Nxd4 {[%clk 0:03:02]}  Qc7 {[%clk 0:02:53]} 6. g3 {[%clk 0:03:02]}  a6 {[%clk 0:02:50]} 7. Bg2 {[%clk 0:03:02]}  Nf6 {[%clk 0:02:50]} 8. O-O {[%clk 0:03:03]}  h5 {[%clk 0:02:48]} 9. Re1 {[%clk 0:03:01]}  Nxd4 {[%clk 0:02:34]} 10. Qxd4 {[%clk 0:03:02]}  Bc5 {[%clk 0:02:33]} 11. Bf4 {[%clk 0:03:02]}  d6 {[%clk 0:02:32]} 12. Qd2 {[%clk 0:03:02]}  e5 {[%clk 0:02:23]} 13. Be3 {[%clk 0:02:59]}  Be6 {[%clk 0:02:17]} 14. Rad1 {[%clk 0:02:58]}  Rd8 {[%clk 0:02:03]} 15. Bxc5 {[%clk 0:02:48]}  Qxc5 {[%clk 0:02:01]} 16. Re3 {[%clk 0:02:38]}  h4 {[%clk 0:01:52]} 17. Rd3 {[%clk 0:02:36]}  hxg3 {[%clk 0:01:52]} 18. hxg3 {[%clk 0:02:36]}  Ng4 {[%clk 0:01:41]} 19. Nd5 {[%clk 0:02:26]}  Bxd5 {[%clk 0:01:12]} 20. Rxd5 {[%clk 0:02:27]}  Qb6 {[%clk 0:01:11]} 21. Bf3 {[%clk 0:02:16]}  Nf6 {[%clk 0:01:04]} 22. Rxd6 {[%clk 0:02:14]}  Rxd6 {[%clk 0:01:03]} 23. Qxd6 {[%clk 0:02:15]}  Qxd6 {[%clk 0:01:02]} 24. Rxd6 {[%clk 0:02:16]}  Ke7 {[%clk 0:00:59]} 25. Rb6 {[%clk 0:02:16]}  Rb8 {[%clk 0:00:59]} 26. Rb3 {[%clk 0:01:42]}  b6 {[%clk 0:00:52]} 27. Be2 {[%clk 0:01:29]}  Nxe4 {[%clk 0:00:49]} 28. Re3 {[%clk 0:01:27]}  f5 {[%clk 0:00:48]} 29. Bxa6 {[%clk 0:01:04]}  Kf6 {[%clk 0:00:39]} 30. a4 {[%clk 0:00:54]}  g5 {[%clk 0:00:37]} 31. b4 {[%clk 0:00:52]}  g4 {[%clk 0:00:33]} 32. Be2 {[%clk 0:00:37]}  Ng5 {[%clk 0:00:28]} 33. Rc3 {[%clk 0:00:36]}  e4 {[%clk 0:00:25]} 34. Kg2 {[%clk 0:00:05]}  Ke5 {[%clk 0:00:23]} 35. Rb3 {[%clk 0:00:05]}  Rd8 {[%clk 0:00:19]} 36. a5 {[%clk 0:00:05]}  bxa5 {[%clk 0:00:18]} 37. bxa5 {[%clk 0:00:05]}  Nf3 {[%clk 0:00:17]} 38. a6 {[%clk 0:00:02]}  Ne1+ {[%clk 0:00:16]} 39. Kf1 {[%clk 0:00:03]}  Nxc2 {[%clk 0:00:16]} 40. a7 {[%clk 0:00:03]}  Ra8 {[%clk 0:00:15]} 41. Rb5+ {[%clk 0:00:03]}  Kd4 {[%clk 0:00:14]} 42. Ra5 {[%clk 0:00:03]}  Nb4 {[%clk 0:00:13]} 43. Bb5 {[%clk 0:00:04]}  Kc3 {[%clk 0:00:09]} 44. Bd7 {[%clk 0:00:04]}  e3 {[%clk 0:00:07]} 45. fxe3 {[%clk 0:00:04]}  Rd8 {[%clk 0:00:04]} 46. Bxf5 {[%clk 0:00:04]}  Rd1+ {[%clk 0:00:01]} 47. Ke2 {[%clk 0:00:04]}  Rd2+ {[%clk 0:00:01]} 48. Ke1 {[%clk 0:00:05]} 1-0


[Site "https://www.chess.com"]

[Event "Titled Tuesday Blitz May 24 Late 2022"]
[White "Turutin, Alexander"]
[Black "Aung Thant Zin"]
[WhiteFideId "4180623"]
[BlackFideId "13000063"]
[WhiteElo "2402"]
[BlackElo "2278"]
[Result "1-0"]
[Round "08"]
[TimeControl "180+1"]
[Date "2022.05.25"]
[WhiteClock "0:00:23"]
[BlackClock "0:00:23"]

1. g3 {[%clk 0:03:00]}  d5 {[%clk 0:02:58]} 2. Bg2 {[%clk 0:03:01]}  e6 {[%clk 0:02:59]} 3. d4 {[%clk 0:02:59]}  Nf6 {[%clk 0:02:59]} 4. c4 {[%clk 0:02:59]}  c5 {[%clk 0:03:00]} 5. cxd5 {[%clk 0:02:53]}  Nxd5 {[%clk 0:02:59]} 6. Nc3 {[%clk 0:02:50]}  cxd4 {[%clk 0:02:59]} 7. Nxd5 {[%clk 0:02:47]}  exd5 {[%clk 0:02:56]} 8. Nf3 {[%clk 0:02:45]}  Nc6 {[%clk 0:02:47]} 9. Nxd4 {[%clk 0:02:32]}  Bb4+ {[%clk 0:02:45]} 10. Bd2 {[%clk 0:02:28]}  Qa5 {[%clk 0:02:44]} 11. Nb3 {[%clk 0:02:04]}  Bxd2+ {[%clk 0:02:34]} 12. Qxd2 {[%clk 0:02:04]}  Qxd2+ {[%clk 0:02:33]} 13. Kxd2 {[%clk 0:02:05]}  Be6 {[%clk 0:02:32]} 14. Rhd1 {[%clk 0:01:58]}  O-O-O {[%clk 0:02:32]} 15. Rac1 {[%clk 0:01:57]}  Kb8 {[%clk 0:02:31]} 16. Ke1 {[%clk 0:01:50]}  Rhe8 {[%clk 0:02:27]} 17. Nd4 {[%clk 0:01:48]}  Ne5 {[%clk 0:02:16]} 18. b3 {[%clk 0:01:36]}  Bg4 {[%clk 0:02:05]} 19. Kf1 {[%clk 0:01:31]}  Nc6 {[%clk 0:01:22]} 20. Rc2 {[%clk 0:01:26]}  Nb4 {[%clk 0:01:00]} 21. Rcd2 {[%clk 0:01:26]}  Be6 {[%clk 0:00:56]} 22. a3 {[%clk 0:01:08]}  Nc6 {[%clk 0:00:56]} 23. h3 {[%clk 0:01:01]}  Kc7 {[%clk 0:00:54]} 24. b4 {[%clk 0:00:55]}  a6 {[%clk 0:00:51]} 25. Nb3 {[%clk 0:00:47]}  Ne7 {[%clk 0:00:42]} 26. Nc5 {[%clk 0:00:46]}  a5 {[%clk 0:00:34]} 27. b5 {[%clk 0:00:42]}  Kb6 {[%clk 0:00:31]} 28. Nd3 {[%clk 0:00:21]}  Kxb5 {[%clk 0:00:29]} 29. Rb1+ {[%clk 0:00:21]}  Kc6 {[%clk 0:00:24]} 30. Rc2+ {[%clk 0:00:20]}  Kd6 {[%clk 0:00:23]} 31. Rxb7 {[%clk 0:00:19]}  Rb8 {[%clk 0:00:22]} 32. Ra7 {[%clk 0:00:17]}  Rb1+ {[%clk 0:00:21]} 33. Rc1 {[%clk 0:00:18]}  Rxc1+ {[%clk 0:00:21]} 34. Nxc1 {[%clk 0:00:19]}  Rb8 {[%clk 0:00:18]} 35. Ke1 {[%clk 0:00:17]}  Rb2 {[%clk 0:00:16]} 36. Nd3 {[%clk 0:00:16]}  Ra2 {[%clk 0:00:15]} 37. Rxa5 {[%clk 0:00:14]}  Nc6 {[%clk 0:00:14]} 38. Ra6 {[%clk 0:00:12]}  Kc7 {[%clk 0:00:15]} 39. Rxc6+ {[%clk 0:00:12]}  Kxc6 {[%clk 0:00:15]} 40. Nb4+ {[%clk 0:00:12]}  Kb5 {[%clk 0:00:15]} 41. Nxa2 {[%clk 0:00:13]}  Ka4 {[%clk 0:00:16]} 42. Nb4 {[%clk 0:00:14]}  Kxa3 {[%clk 0:00:16]} 43. Nxd5 {[%clk 0:00:14]}  Kb3 {[%clk 0:00:14]} 44. Kd2 {[%clk 0:00:14]}  g6 {[%clk 0:00:12]} 45. Nf4 {[%clk 0:00:15]}  h5 {[%clk 0:00:13]} 46. Nxe6 {[%clk 0:00:15]}  fxe6 {[%clk 0:00:14]} 47. Kd3 {[%clk 0:00:16]}  Kb4 {[%clk 0:00:14]} 48. Kd4 {[%clk 0:00:16]}  Kb5 {[%clk 0:00:14]} 49. Ke5 {[%clk 0:00:17]}  Kb4 {[%clk 0:00:15]} 50. Kxe6 {[%clk 0:00:17]}  Kc3 {[%clk 0:00:16]} 51. Kf6 {[%clk 0:00:18]}  Kd2 {[%clk 0:00:17]} 52. Kxg6 {[%clk 0:00:19]}  Kxe2 {[%clk 0:00:18]} 53. Kxh5 {[%clk 0:00:19]}  Kxf2 {[%clk 0:00:19]} 54. g4 {[%clk 0:00:19]}  Kg3 {[%clk 0:00:19]} 55. g5 {[%clk 0:00:20]}  Kxg2 {[%clk 0:00:20]} 56. h4 {[%clk 0:00:21]}  Kh3 {[%clk 0:00:21]} 57. g6 {[%clk 0:00:21]}  Kh2 {[%clk 0:00:21]} 58. g7 {[%clk 0:00:22]}  Kh3 {[%clk 0:00:22]} 59. g8=Q {[%clk 0:00:22]}  Kh2 {[%clk 0:00:23]} 60. Kg4 {[%clk 0:00:22]}  Kh1 {[%clk 0:00:24]} 61. Kf3 {[%clk 0:00:22]}  Kh2 {[%clk 0:00:23]} 62. Qg2# {[%clk 0:00:23]} 1-0


[Site "https://www.chess.com"]